{"text_format":"1","workbook":"xlsx","n_sheets":7,"sheets":["鳩番号入力","タウリス登録申込用紙 (1)","タウリス登録申込用紙 (2)","タウリス登録申込用紙 (3)","タウリス登録申込用紙 (4)","タウリス登録申込用紙 (5)","タウリス登録申込用紙 (6)"],"not_rendered":{"charts":0,"images":0,"macros":1,"external_links":0,"defined_names":9,"comments":0,"pivot_tables":0},"unopened":[],"bounds":{"document_bytes":16777216,"sheet_cells":100000,"rows_first":2000,"rows_last":500,"rows_between":2000,"halvings":0,"cell_chars":16384,"cell_head_chars":4096},"cells_cut":0,"cells_raw":0,"read":"whole","date_system":"1900"}

{"sheet":"鳩番号入力","index":0,"n_rows":241,"n_cols":14,"rows_kept":241,"cut":false,"hidden":false,"merged":[]}
["羽数","年号","記号","鳩番号","性別","羽色","備考",null,null,"年号","記号","性別","羽色"]
[1,null,null,null,null,null,null,null,"年号入力→",null,null,"M"]
[2,null,null,null,null,null,null,null,"できます",16,"AB","F","B"]
[3,null,null,null,null,null,null,null,null,17,"DA",null,"BC"]
[4,null,null,null,null,null,null,null,null,18,null,"←記号入力","BCP"]
[5,null,null,null,null,null,null,null,null,19,null,"　できます","BCW"]
[6,null,null,null,null,null,null,null,null,20,null,null,"BCWP"]
[7,null,null,null,null,null,null,null,null,21,null,null,"BLK"]
[8,null,null,null,null,null,null,null,null,22,null,null,"BLKC"]
[9,null,null,null,null,null,null,null,null,23,null,null,"BLKW"]
[10,null,null,null,null,null,null,null,null,24,null,null,"BW"]
[11,null,null,null,null,null,null,null,null,25,null,null,"BP"]
[12,null,null,null,null,null,null,null,null,26,null,null,"CHO"]
[13,null,null,null,null,null,null,null,null,null,null,null,"DC"]
[14,null,null,null,null,null,null,null,null,null,null,null,"DCP"]
[15,null,null,null,null,null,null,null,null,null,null,null,"DCW"]
[16,null,null,null,null,null,null,null,null,"項目","データ入力",null,"DCWP"]
[17,null,null,null,null,null,null,null,null,"レース年度",null,"←西暦4桁","G"]
[18,null,null,null,null,null,null,null,null,"春・秋",null,null,"M"]
[19,null,null,null,null,null,null,null,null,"コード番号",null,null,"PB"]
[20,null,null,null,null,null,null,null,null,"鳩舎名",null,null,"PBW"]
[21,null,null,null,null,null,null,null,null,"継続数",null,null,"R"]
[22,null,null,null,null,null,null,null,null,"新規登録数",null,null,"RC"]
[23,null,null,null,null,null,null,null,"持ち込み","チップ数",null,null,"RCW"]
[24,null,null,null,null,null,null,null,null,null,null,null,"RCWP"]
[25,null,null,null,null,null,null,null,"使い方",null,null,null,"RW"]
[26,null,null,null,null,null,null,null,"①上の緑の欄のデータを入力　↑",null,null,null,"S"]
[27,null,null,null,null,null,null,null,"②左の表に鳩のデータを入力",null,null,null,"SRT"]
[28,null,null,null,null,null,null,null,"③「番号並び替え」ボタンをクリック",null,null,null,"SHRY"]
[29,null,null,null,null,null,null,null,"④「申込み用紙へ転記」ボタンをクリック",null,null,null,"SW"]
[30,null,null,null,null,null,null,null,null,null,null,null,"W"]
[31,null,null,null,null,null,null,null,null,"性別","羽数",null,"WG"]
[32,null,null,null,null,null,null,null,null,"M　♂",{"$f":"COUNTIF(E2:E241,\"M\")","v":0},null,"YERO","←羽色入力"]
[33,null,null,null,null,null,null,null,null,"F　♀",{"$f":"COUNTIF(E2:E241,\"F\")","v":0},null,null,"　できます"]
[34,null,null,null,null,null,null,null,null,"合計",{"$f":"K33+K34","v":0}]
[35]
[36,null,null,null,null,null,null,"鳩番号を入力したいセルをダブルクリックして"]
[37,null,null,null,null,null,null,"Enterキーを押すと上のセルの鳩番号の"]
[38,null,null,null,null,null,null,"続き番号が自動的に入力されます。"]
[39]
[40]
[41]
[42]
[43]
[44]
[45]
[46]
[47]
[48]
[49]
[50]
[51]
[52]
[53]
[54]
[55]
[56]
[57]
[58]
[59]
[60]
[61]
[62]
[63]
[64]
[65]
[66]
[67]
[68]
[69]
[70]
[71]
[72]
[73]
[74]
[75]
[76]
[77]
[78]
[79]
[80]
[81]
[82]
[83]
[84]
[85]
[86]
[87]
[88]
[89]
[90]
[91]
[92]
[93]
[94]
[95]
[96]
[97]
[98]
[99]
[100]
[101]
[102]
[103]
[104]
[105]
[106]
[107]
[108]
[109]
[110]
[111]
[112]
[113]
[114]
[115]
[116]
[117]
[118]
[119]
[120]
[121]
[122]
[123]
[124]
[125]
[126]
[127]
[128]
[129]
[130]
[131]
[132]
[133]
[134]
[135]
[136]
[137]
[138]
[139]
[140]
[141]
[142]
[143]
[144]
[145]
[146]
[147]
[148]
[149]
[150]
[151]
[152]
[153]
[154]
[155]
[156]
[157]
[158]
[159]
[160]
[161]
[162]
[163]
[164]
[165]
[166]
[167]
[168]
[169]
[170]
[171]
[172]
[173]
[174]
[175]
[176]
[177]
[178]
[179]
[180]
[181]
[182]
[183]
[184]
[185]
[186]
[187]
[188]
[189]
[190]
[191]
[192]
[193]
[194]
[195]
[196]
[197]
[198]
[199]
[200]
[201]
[202]
[203]
[204]
[205]
[206]
[207]
[208]
[209]
[210]
[211]
[212]
[213]
[214]
[215]
[216]
[217]
[218]
[219]
[220]
[221]
[222]
[223]
[224]
[225]
[226]
[227]
[228]
[229]
[230]
[231]
[232]
[233]
[234]
[235]
[236]
[237]
[238]
[239]
[240]

{"sheet":"タウリス登録申込用紙 (1)","index":1,"n_rows":35,"n_cols":18,"rows_kept":35,"cut":false,"hidden":false,"merged":[[3,6,3,7],[1,0,1,1],[3,4,3,5],[3,0,3,1]]}
["タウリスチップ新規登録申込用紙"]
[{"$f":"IF(鳩番号入力!$K$18=\"\",\"\",鳩番号入力!$K$18)","v":""},null,"年",{"$f":"IF(鳩番号入力!$K$19=\"\",\"\",鳩番号入力!$K$19)","v":""},"期",null,null,null,null,null,null,"No.",1]
[]
["コード番号",null,{"$f":"IF(鳩番号入力!$K$20=\"\",\"\",鳩番号入力!$K$20)","v":""},"鳩舎名",{"$f":"IF(鳩番号入力!$K$21=\"\",\"\",鳩番号入力!$K$21)","v":""},null,"継続",null,{"$f":"IF(鳩番号入力!$K$22=\"\",\"\",鳩番号入力!$K$22)","v":""},"新規",{"$f":"IF(鳩番号入力!$K$23=\"\",\"\",鳩番号入力!$K$23)","v":""},"持込\nチップ",{"$f":"IF(鳩番号入力!$K$24=\"\",\"\",鳩番号入力!$K$24)","v":""}]
[]
[null,"年号","記号","鳩番号","M・F","羽色",null,null,"年号","記号","鳩番号","M・F","羽色"]
[1,null,null,null,null,null,null,21,null,null,null,null,null,null,null,"M","B","春"]
[2,null,null,null,null,null,null,22,null,null,null,null,null,null,null,"F","BC","秋"]
[3,null,null,null,null,null,null,23,null,null,null,null,null,null,null,null,"BCP"]
[4,null,null,null,null,null,null,24,null,null,null,null,null,null,null,null,"BCW"]
[5,null,null,null,null,null,null,25,null,null,null,null,null,null,null,null,"BCWP"]
[6,null,null,null,null,null,null,26,null,null,null,null,null,null,null,null,"BLK"]
[7,null,null,null,null,null,null,27,null,null,null,null,null,null,null,null,"BLKC"]
[8,null,null,null,null,null,null,28,null,null,null,null,null,null,null,null,"BLKW"]
[9,null,null,null,null,null,null,29,null,null,null,null,null,null,null,null,"BW"]
[10,null,null,null,null,null,null,30,null,null,null,null,null,null,null,null,"CHO"]
[11,null,null,null,null,null,null,31,null,null,null,null,null,null,null,null,"DC"]
[12,null,null,null,null,null,null,32,null,null,null,null,null,null,null,null,"DCP"]
[13,null,null,null,null,null,null,33,null,null,null,null,null,null,null,null,"DCW"]
[14,null,null,null,null,null,null,34,null,null,null,null,null,null,null,null,"DCWP"]
[15,null,null,null,null,null,null,35,null,null,null,null,null,null,null,null,"G"]
[16,null,null,null,null,null,null,36,null,null,null,null,null,null,null,null,"M"]
[17,null,null,null,null,null,null,37,null,null,null,null,null,null,null,null,"PB"]
[18,null,null,null,null,null,null,38,null,null,null,null,null,null,null,null,"PBW"]
[19,null,null,null,null,null,null,39,null,null,null,null,null,null,null,null,"R"]
[20,null,null,null,null,null,null,40,null,null,null,null,null,null,null,null,"RC"]
[null,null,null,null,null,null,null,null,null,null,null,null,null,null,null,null,"RCW"]
["同じ年号はまとめて、鳩番号は番号順に省略せずに５桁で記入してください。",null,null,null,null,null,null,null,null,null,null,"♂=M　 ♀=F",null,null,null,null,"RCWP"]
[null,null,null,null,null,null,null,null,null,null,null,null,null,null,null,null,"RW"]
[null,null,null,null,null,null,null,null,null,null,null,null,null,null,null,null,"S"]
[null,null,null,null,null,null,null,null,null,null,null,null,null,null,null,null,"SRT"]
[null,null,null,null,null,null,null,null,null,null,null,null,null,null,null,null,"SW"]
[null,null,null,null,null,null,null,null,null,null,null,null,null,null,null,null,"W"]
[null,null,null,null,null,null,null,null,null,null,null,null,null,null,null,null,"WG"]
[null,null,null,null,null,null,null,null,null,null,null,null,null,null,null,null,"YERO"]

{"sheet":"タウリス登録申込用紙 (2)","index":2,"n_rows":35,"n_cols":18,"rows_kept":35,"cut":false,"hidden":false,"merged":[[3,6,3,7],[1,0,1,1],[3,4,3,5],[3,0,3,1]]}
["タウリスチップ新規登録申込用紙"]
[{"$f":"IF('タウリス登録申込用紙 (1)'!A2:B2=\"\",\"\",'タウリス登録申込用紙 (1)'!A2:B2)","v":""},null,"年",{"$f":"IF('タウリス登録申込用紙 (1)'!D2=\"\",\"\",'タウリス登録申込用紙 (1)'!D2)","v":""},"期",null,null,null,null,null,null,"No.",2]
[]
["コード番号",null,{"$f":"IF('タウリス登録申込用紙 (1)'!C4=\"\",\"\",'タウリス登録申込用紙 (1)'!C4)","v":""},"鳩舎名",{"$f":"IF('タウリス登録申込用紙 (1)'!D4:E4=\"\",\"\",'タウリス登録申込用紙 (1)'!D4:E4)","v":""},null,"継続",null,{"$f":"IF('タウリス登録申込用紙 (1)'!I4=\"\",\"\",'タウリス登録申込用紙 (1)'!I4)","v":""},"新規",{"$f":"IF('タウリス登録申込用紙 (1)'!K4=\"\",\"\",'タウリス登録申込用紙 (1)'!K4)","v":""},"持込\nチップ",{"$f":"IF('タウリス登録申込用紙 (1)'!M4=\"\",\"\",'タウリス登録申込用紙 (1)'!M4)","v":""}]
[]
[null,"年号","記号","鳩番号","M・F","羽色",null,null,"年号","記号","鳩番号","M・F","羽色"]
[41,null,null,null,null,null,null,61,null,null,null,null,null,null,null,"M","B","春"]
[42,null,null,null,null,null,null,62,null,null,null,null,null,null,null,"F","BC","秋"]
[43,null,null,null,null,null,null,63,null,null,null,null,null,null,null,null,"BCP"]
[44,null,null,null,null,null,null,64,null,null,null,null,null,null,null,null,"BCW"]
[45,null,null,null,null,null,null,65,null,null,null,null,null,null,null,null,"BCWP"]
[46,null,null,null,null,null,null,66,null,null,null,null,null,null,null,null,"BLK"]
[47,null,null,null,null,null,null,67,null,null,null,null,null,null,null,null,"BLKC"]
[48,null,null,null,null,null,null,68,null,null,null,null,null,null,null,null,"BLKW"]
[49,null,null,null,null,null,null,69,null,null,null,null,null,null,null,null,"BW"]
[50,null,null,null,null,null,null,70,null,null,null,null,null,null,null,null,"CHO"]
[51,null,null,null,null,null,null,71,null,null,null,null,null,null,null,null,"DC"]
[52,null,null,null,null,null,null,72,null,null,null,null,null,null,null,null,"DCP"]
[53,null,null,null,null,null,null,73,null,null,null,null,null,null,null,null,"DCW"]
[54,null,null,null,null,null,null,74,null,null,null,null,null,null,null,null,"DCWP"]
[55,null,null,null,null,null,null,75,null,null,null,null,null,null,null,null,"G"]
[56,null,null,null,null,null,null,76,null,null,null,null,null,null,null,null,"M"]
[57,null,null,null,null,null,null,77,null,null,null,null,null,null,null,null,"PB"]
[58,null,null,null,null,null,null,78,null,null,null,null,null,null,null,null,"PBW"]
[59,null,null,null,null,null,null,79,null,null,null,null,null,null,null,null,"R"]
[60,null,null,null,null,null,null,80,null,null,null,null,null,null,null,null,"RC"]
[null,null,null,null,null,null,null,null,null,null,null,null,null,null,null,null,"RCW"]
["同じ年号はまとめて、鳩番号は番号順に省略せずに５桁で記入してください。",null,null,null,null,null,null,null,null,null,null,"♂=M　 ♀=F",null,null,null,null,"RCWP"]
[null,null,null,null,null,null,null,null,null,null,null,null,null,null,null,null,"RW"]
[null,null,null,null,null,null,null,null,null,null,null,null,null,null,null,null,"S"]
[null,null,null,null,null,null,null,null,null,null,null,null,null,null,null,null,"SRT"]
[null,null,null,null,null,null,null,null,null,null,null,null,null,null,null,null,"SW"]
[null,null,null,null,null,null,null,null,null,null,null,null,null,null,null,null,"W"]
[null,null,null,null,null,null,null,null,null,null,null,null,null,null,null,null,"WG"]
[null,null,null,null,null,null,null,null,null,null,null,null,null,null,null,null,"YERO"]

{"sheet":"タウリス登録申込用紙 (3)","index":3,"n_rows":35,"n_cols":18,"rows_kept":35,"cut":false,"hidden":false,"merged":[[3,6,3,7],[1,0,1,1],[3,4,3,5],[3,0,3,1]]}
["タウリスチップ新規登録申込用紙"]
[{"$f":"IF('タウリス登録申込用紙 (1)'!A2:B2=\"\",\"\",'タウリス登録申込用紙 (1)'!A2:B2)","v":""},null,"年",{"$f":"IF('タウリス登録申込用紙 (1)'!D2=\"\",\"\",'タウリス登録申込用紙 (1)'!D2)","v":""},"期",null,null,null,null,null,null,"No.",3]
[]
["コード番号",null,{"$f":"IF('タウリス登録申込用紙 (1)'!C4=\"\",\"\",'タウリス登録申込用紙 (1)'!C4)","v":""},"鳩舎名",{"$f":"IF('タウリス登録申込用紙 (1)'!D4:E4=\"\",\"\",'タウリス登録申込用紙 (1)'!D4:E4)","v":""},null,"継続",null,{"$f":"IF('タウリス登録申込用紙 (1)'!I4=\"\",\"\",'タウリス登録申込用紙 (1)'!I4)","v":""},"新規",{"$f":"IF('タウリス登録申込用紙 (1)'!K4=\"\",\"\",'タウリス登録申込用紙 (1)'!K4)","v":""},"持込\nチップ",{"$f":"IF('タウリス登録申込用紙 (1)'!M4=\"\",\"\",'タウリス登録申込用紙 (1)'!M4)","v":""}]
[]
[null,"年号","記号","鳩番号","M・F","羽色",null,null,"年号","記号","鳩番号","M・F","羽色"]
[81,null,null,null,null,null,null,101,null,null,null,null,null,null,null,"M","B","春"]
[82,null,null,null,null,null,null,102,null,null,null,null,null,null,null,"F","BC","秋"]
[83,null,null,null,null,null,null,103,null,null,null,null,null,null,null,null,"BCP"]
[84,null,null,null,null,null,null,104,null,null,null,null,null,null,null,null,"BCW"]
[85,null,null,null,null,null,null,105,null,null,null,null,null,null,null,null,"BCWP"]
[86,null,null,null,null,null,null,106,null,null,null,null,null,null,null,null,"BLK"]
[87,null,null,null,null,null,null,107,null,null,null,null,null,null,null,null,"BLKC"]
[88,null,null,null,null,null,null,108,null,null,null,null,null,null,null,null,"BLKW"]
[89,null,null,null,null,null,null,109,null,null,null,null,null,null,null,null,"BW"]
[90,null,null,null,null,null,null,110,null,null,null,null,null,null,null,null,"CHO"]
[91,null,null,null,null,null,null,111,null,null,null,null,null,null,null,null,"DC"]
[92,null,null,null,null,null,null,112,null,null,null,null,null,null,null,null,"DCP"]
[93,null,null,null,null,null,null,113,null,null,null,null,null,null,null,null,"DCW"]
[94,null,null,null,null,null,null,114,null,null,null,null,null,null,null,null,"DCWP"]
[95,null,null,null,null,null,null,115,null,null,null,null,null,null,null,null,"G"]
[96,null,null,null,null,null,null,116,null,null,null,null,null,null,null,null,"M"]
[97,null,null,null,null,null,null,117,null,null,null,null,null,null,null,null,"PB"]
[98,null,null,null,null,null,null,118,null,null,null,null,null,null,null,null,"PBW"]
[99,null,null,null,null,null,null,119,null,null,null,null,null,null,null,null,"R"]
[100,null,null,null,null,null,null,120,null,null,null,null,null,null,null,null,"RC"]
[null,null,null,null,null,null,null,null,null,null,null,null,null,null,null,null,"RCW"]
["同じ年号はまとめて、鳩番号は番号順に省略せずに５桁で記入してください。",null,null,null,null,null,null,null,null,null,null,"♂=M　 ♀=F",null,null,null,null,"RCWP"]
[null,null,null,null,null,null,null,null,null,null,null,null,null,null,null,null,"RW"]
[null,null,null,null,null,null,null,null,null,null,null,null,null,null,null,null,"S"]
[null,null,null,null,null,null,null,null,null,null,null,null,null,null,null,null,"SRT"]
[null,null,null,null,null,null,null,null,null,null,null,null,null,null,null,null,"SW"]
[null,null,null,null,null,null,null,null,null,null,null,null,null,null,null,null,"W"]
[null,null,null,null,null,null,null,null,null,null,null,null,null,null,null,null,"WG"]
[null,null,null,null,null,null,null,null,null,null,null,null,null,null,null,null,"YERO"]

{"sheet":"タウリス登録申込用紙 (4)","index":4,"n_rows":35,"n_cols":18,"rows_kept":35,"cut":false,"hidden":false,"merged":[[3,6,3,7],[1,0,1,1],[3,4,3,5],[3,0,3,1]]}
["タウリスチップ新規登録申込用紙"]
[{"$f":"IF('タウリス登録申込用紙 (1)'!A2:B2=\"\",\"\",'タウリス登録申込用紙 (1)'!A2:B2)","v":""},null,"年",{"$f":"IF('タウリス登録申込用紙 (1)'!D2=\"\",\"\",'タウリス登録申込用紙 (1)'!D2)","v":""},"期",null,null,null,null,null,null,"No.",4]
[]
["コード番号",null,{"$f":"IF('タウリス登録申込用紙 (1)'!C4=\"\",\"\",'タウリス登録申込用紙 (1)'!C4)","v":""},"鳩舎名",{"$f":"IF('タウリス登録申込用紙 (1)'!D4:E4=\"\",\"\",'タウリス登録申込用紙 (1)'!D4:E4)","v":""},null,"継続",null,{"$f":"IF('タウリス登録申込用紙 (1)'!I4=\"\",\"\",'タウリス登録申込用紙 (1)'!I4)","v":""},"新規",{"$f":"IF('タウリス登録申込用紙 (1)'!K4=\"\",\"\",'タウリス登録申込用紙 (1)'!K4)","v":""},"持込\nチップ",{"$f":"IF('タウリス登録申込用紙 (1)'!M4=\"\",\"\",'タウリス登録申込用紙 (1)'!M4)","v":""}]
[]
[null,"年号","記号","鳩番号","M・F","羽色",null,null,"年号","記号","鳩番号","M・F","羽色"]
[121,null,null,null,null,null,null,141,null,null,null,null,null,null,null,"M","B","春"]
[122,null,null,null,null,null,null,142,null,null,null,null,null,null,null,"F","BC","秋"]
[123,null,null,null,null,null,null,143,null,null,null,null,null,null,null,null,"BCP"]
[124,null,null,null,null,null,null,144,null,null,null,null,null,null,null,null,"BCW"]
[125,null,null,null,null,null,null,145,null,null,null,null,null,null,null,null,"BCWP"]
[126,null,null,null,null,null,null,146,null,null,null,null,null,null,null,null,"BLK"]
[127,null,null,null,null,null,null,147,null,null,null,null,null,null,null,null,"BLKC"]
[128,null,null,null,null,null,null,148,null,null,null,null,null,null,null,null,"BLKW"]
[129,null,null,null,null,null,null,149,null,null,null,null,null,null,null,null,"BW"]
[130,null,null,null,null,null,null,150,null,null,null,null,null,null,null,null,"CHO"]
[131,null,null,null,null,null,null,151,null,null,null,null,null,null,null,null,"DC"]
[132,null,null,null,null,null,null,152,null,null,null,null,null,null,null,null,"DCP"]
[133,null,null,null,null,null,null,153,null,null,null,null,null,null,null,null,"DCW"]
[134,null,null,null,null,null,null,154,null,null,null,null,null,null,null,null,"DCWP"]
[135,null,null,null,null,null,null,155,null,null,null,null,null,null,null,null,"G"]
[136,null,null,null,null,null,null,156,null,null,null,null,null,null,null,null,"M"]
[137,null,null,null,null,null,null,157,null,null,null,null,null,null,null,null,"PB"]
[138,null,null,null,null,null,null,158,null,null,null,null,null,null,null,null,"PBW"]
[139,null,null,null,null,null,null,159,null,null,null,null,null,null,null,null,"R"]
[140,null,null,null,null,null,null,160,null,null,null,null,null,null,null,null,"RC"]
[null,null,null,null,null,null,null,null,null,null,null,null,null,null,null,null,"RCW"]
["同じ年号はまとめて、鳩番号は番号順に省略せずに５桁で記入してください。",null,null,null,null,null,null,null,null,null,null,"♂=M　 ♀=F",null,null,null,null,"RCWP"]
[null,null,null,null,null,null,null,null,null,null,null,null,null,null,null,null,"RW"]
[null,null,null,null,null,null,null,null,null,null,null,null,null,null,null,null,"S"]
[null,null,null,null,null,null,null,null,null,null,null,null,null,null,null,null,"SRT"]
[null,null,null,null,null,null,null,null,null,null,null,null,null,null,null,null,"SW"]
[null,null,null,null,null,null,null,null,null,null,null,null,null,null,null,null,"W"]
[null,null,null,null,null,null,null,null,null,null,null,null,null,null,null,null,"WG"]
[null,null,null,null,null,null,null,null,null,null,null,null,null,null,null,null,"YERO"]

{"sheet":"タウリス登録申込用紙 (5)","index":5,"n_rows":35,"n_cols":18,"rows_kept":35,"cut":false,"hidden":false,"merged":[[3,6,3,7],[1,0,1,1],[3,4,3,5],[3,0,3,1]]}
["タウリスチップ新規登録申込用紙"]
[{"$f":"IF('タウリス登録申込用紙 (1)'!A2:B2=\"\",\"\",'タウリス登録申込用紙 (1)'!A2:B2)","v":""},null,"年",{"$f":"IF('タウリス登録申込用紙 (1)'!D2=\"\",\"\",'タウリス登録申込用紙 (1)'!D2)","v":""},"期",null,null,null,null,null,null,"No.",5]
[]
["コード番号",null,{"$f":"IF('タウリス登録申込用紙 (1)'!C4=\"\",\"\",'タウリス登録申込用紙 (1)'!C4)","v":""},"鳩舎名",{"$f":"IF('タウリス登録申込用紙 (1)'!D4:E4=\"\",\"\",'タウリス登録申込用紙 (1)'!D4:E4)","v":""},null,"継続",null,{"$f":"IF('タウリス登録申込用紙 (1)'!I4=\"\",\"\",'タウリス登録申込用紙 (1)'!I4)","v":""},"新規",{"$f":"IF('タウリス登録申込用紙 (1)'!K4=\"\",\"\",'タウリス登録申込用紙 (1)'!K4)","v":""},"持込\nチップ",{"$f":"IF('タウリス登録申込用紙 (1)'!M4=\"\",\"\",'タウリス登録申込用紙 (1)'!M4)","v":""}]
[]
[null,"年号","記号","鳩番号","M・F","羽色",null,null,"年号","記号","鳩番号","M・F","羽色"]
[161,null,null,null,null,null,null,181,null,null,null,null,null,null,null,"M","B","春"]
[162,null,null,null,null,null,null,182,null,null,null,null,null,null,null,"F","BC","秋"]
[163,null,null,null,null,null,null,183,null,null,null,null,null,null,null,null,"BCP"]
[164,null,null,null,null,null,null,184,null,null,null,null,null,null,null,null,"BCW"]
[165,null,null,null,null,null,null,185,null,null,null,null,null,null,null,null,"BCWP"]
[166,null,null,null,null,null,null,186,null,null,null,null,null,null,null,null,"BLK"]
[167,null,null,null,null,null,null,187,null,null,null,null,null,null,null,null,"BLKC"]
[168,null,null,null,null,null,null,188,null,null,null,null,null,null,null,null,"BLKW"]
[169,null,null,null,null,null,null,189,null,null,null,null,null,null,null,null,"BW"]
[170,null,null,null,null,null,null,190,null,null,null,null,null,null,null,null,"CHO"]
[171,null,null,null,null,null,null,191,null,null,null,null,null,null,null,null,"DC"]
[172,null,null,null,null,null,null,192,null,null,null,null,null,null,null,null,"DCP"]
[173,null,null,null,null,null,null,193,null,null,null,null,null,null,null,null,"DCW"]
[174,null,null,null,null,null,null,194,null,null,null,null,null,null,null,null,"DCWP"]
[175,null,null,null,null,null,null,195,null,null,null,null,null,null,null,null,"G"]
[176,null,null,null,null,null,null,196,null,null,null,null,null,null,null,null,"M"]
[177,null,null,null,null,null,null,197,null,null,null,null,null,null,null,null,"PB"]
[178,null,null,null,null,null,null,198,null,null,null,null,null,null,null,null,"PBW"]
[179,null,null,null,null,null,null,199,null,null,null,null,null,null,null,null,"R"]
[180,null,null,null,null,null,null,200,null,null,null,null,null,null,null,null,"RC"]
[null,null,null,null,null,null,null,null,null,null,null,null,null,null,null,null,"RCW"]
["同じ年号はまとめて、鳩番号は番号順に省略せずに５桁で記入してください。",null,null,null,null,null,null,null,null,null,null,"♂=M　 ♀=F",null,null,null,null,"RCWP"]
[null,null,null,null,null,null,null,null,null,null,null,null,null,null,null,null,"RW"]
[null,null,null,null,null,null,null,null,null,null,null,null,null,null,null,null,"S"]
[null,null,null,null,null,null,null,null,null,null,null,null,null,null,null,null,"SRT"]
[null,null,null,null,null,null,null,null,null,null,null,null,null,null,null,null,"SW"]
[null,null,null,null,null,null,null,null,null,null,null,null,null,null,null,null,"W"]
[null,null,null,null,null,null,null,null,null,null,null,null,null,null,null,null,"WG"]
[null,null,null,null,null,null,null,null,null,null,null,null,null,null,null,null,"YERO"]

{"sheet":"タウリス登録申込用紙 (6)","index":6,"n_rows":35,"n_cols":18,"rows_kept":35,"cut":false,"hidden":false,"merged":[[3,6,3,7],[1,0,1,1],[3,4,3,5],[3,0,3,1]]}
["タウリスチップ新規登録申込用紙"]
[{"$f":"IF('タウリス登録申込用紙 (1)'!A2:B2=\"\",\"\",'タウリス登録申込用紙 (1)'!A2:B2)","v":""},null,"年",{"$f":"IF('タウリス登録申込用紙 (1)'!D2=\"\",\"\",'タウリス登録申込用紙 (1)'!D2)","v":""},"期",null,null,null,null,null,null,"No.",6]
[]
["コード番号",null,{"$f":"IF('タウリス登録申込用紙 (1)'!C4=\"\",\"\",'タウリス登録申込用紙 (1)'!C4)","v":""},"鳩舎名",{"$f":"IF('タウリス登録申込用紙 (1)'!D4:E4=\"\",\"\",'タウリス登録申込用紙 (1)'!D4:E4)","v":""},null,"継続",null,{"$f":"IF('タウリス登録申込用紙 (1)'!I4=\"\",\"\",'タウリス登録申込用紙 (1)'!I4)","v":""},"新規",{"$f":"IF('タウリス登録申込用紙 (1)'!K4=\"\",\"\",'タウリス登録申込用紙 (1)'!K4)","v":""},"持込\nチップ",{"$f":"IF('タウリス登録申込用紙 (1)'!M4=\"\",\"\",'タウリス登録申込用紙 (1)'!M4)","v":""}]
[]
[null,"年号","記号","鳩番号","M・F","羽色",null,null,"年号","記号","鳩番号","M・F","羽色"]
[201,null,null,null,null,null,null,221,null,null,null,null,null,null,null,"M","B","春"]
[202,null,null,null,null,null,null,222,null,null,null,null,null,null,null,"F","BC","秋"]
[203,null,null,null,null,null,null,223,null,null,null,null,null,null,null,null,"BCP"]
[204,null,null,null,null,null,null,224,null,null,null,null,null,null,null,null,"BCW"]
[205,null,null,null,null,null,null,225,null,null,null,null,null,null,null,null,"BCWP"]
[206,null,null,null,null,null,null,226,null,null,null,null,null,null,null,null,"BLK"]
[207,null,null,null,null,null,null,227,null,null,null,null,null,null,null,null,"BLKC"]
[208,null,null,null,null,null,null,228,null,null,null,null,null,null,null,null,"BLKW"]
[209,null,null,null,null,null,null,229,null,null,null,null,null,null,null,null,"BW"]
[210,null,null,null,null,null,null,230,null,null,null,null,null,null,null,null,"CHO"]
[211,null,null,null,null,null,null,231,null,null,null,null,null,null,null,null,"DC"]
[212,null,null,null,null,null,null,232,null,null,null,null,null,null,null,null,"DCP"]
[213,null,null,null,null,null,null,233,null,null,null,null,null,null,null,null,"DCW"]
[214,null,null,null,null,null,null,234,null,null,null,null,null,null,null,null,"DCWP"]
[215,null,null,null,null,null,null,235,null,null,null,null,null,null,null,null,"G"]
[216,null,null,null,null,null,null,236,null,null,null,null,null,null,null,null,"M"]
[217,null,null,null,null,null,null,237,null,null,null,null,null,null,null,null,"PB"]
[218,null,null,null,null,null,null,238,null,null,null,null,null,null,null,null,"PBW"]
[219,null,null,null,null,null,null,239,null,null,null,null,null,null,null,null,"R"]
[220,null,null,null,null,null,null,240,null,null,null,null,null,null,null,null,"RC"]
[null,null,null,null,null,null,null,null,null,null,null,null,null,null,null,null,"RCW"]
["同じ年号はまとめて、鳩番号は番号順に省略せずに５桁で記入してください。",null,null,null,null,null,null,null,null,null,null,"♂=M　 ♀=F",null,null,null,null,"RCWP"]
[null,null,null,null,null,null,null,null,null,null,null,null,null,null,null,null,"RW"]
[null,null,null,null,null,null,null,null,null,null,null,null,null,null,null,null,"S"]
[null,null,null,null,null,null,null,null,null,null,null,null,null,null,null,null,"SRT"]
[null,null,null,null,null,null,null,null,null,null,null,null,null,null,null,null,"SW"]
[null,null,null,null,null,null,null,null,null,null,null,null,null,null,null,null,"W"]
[null,null,null,null,null,null,null,null,null,null,null,null,null,null,null,null,"WG"]
[null,null,null,null,null,null,null,null,null,null,null,null,null,null,null,null,"YERO"]